Cogmind - Beta 12 @@@ ROGUE MODE // 2023.09.28 @ 22:50:53 Player: Kitarik02 Result: Destroyed by B-75 Beast with Magnetic Acceleration Cannon Performance ------------- Evolutions (3) 1500 Regions Visited (7) 1400 Robots Destroyed (59) 295 Value Destroyed (2511) 2511 Prototype IDs (6) 120 Alien Tech Used (0) 0 Bonus (791) 791 TOTAL SCORE: 6617 Bonus ------- High Alert Combat Kills 187 Follower Combat Kills 228 Entered Garrisons 200 Aligned with FarCom 300 Friendly Fire -124 Cogmind --------- Core Integrity 0/700 Matter 63/300 Energy 160/160 System Corruption 6% Temperature Cool (12) Movement Core (500) Ox9 Location -7/Garrison Parts ------- > --- POWER (3) -------- Light Nuclear Core Light Nuclear Core > --- PROPULSION (3) --- (None) > --- UTILITY (4) ------ Improved Heat Sink Small Storage Unit Improved Light Armor Plating > --- WEAPON (3) ------- Particle Gun Pulse Rifle Heavy Laser > --- INVENTORY (8) ---- Authchip [R/Combat] Particle Gun Remote Datajack Peak State ------------ > --- POWER ------------ Deuterium Engine Fission Core > --- PROPULSION ------- Titanium Leg Potential Leg Potential Leg > --- UTILITY ---------- Advanced Cooling System Small Storage Unit Core Shielding Authchip [R/Combat] > --- WEAPON ----------- Firepult Remote Datajack > --- INVENTORY -------- Hardened Heavy Armor Plating Heavy Particle Cannon Enhanced Autogun Gauss Rifle [Rating: 68] Favorites ----------- Power Light Ion Engine Engine Light Ion Engine Power Core Light Nuclear Core Propulsion Potential Leg Leg Potential Leg Wheel Compact Wheel Utility Small Storage Unit Device Advanced Cooling System Storage Small Storage Unit Hackware Authchip [R/Combat] Protection Core Shielding Weapon Assault Rifle Energy Gun Shock Rifle Energy Cannon Firepult Ballistic Gun Assault Rifle Launcher Grenade Launcher Special Weapon Field Lobotomy Kit Build | -11 -10 -10 -10 -9 -8 -7 -7 ------- Run | Jun Mat Min Exi Min Mat Fac Gar Slots Evolved 6 | . . . . . 4 2 . Power 2 | . . . . . 1 1 . Propulsion 1 | . . . . . 1 . . Utility 2 | . . . . . 1 1 . Weapon 1 | . . . . . 1 . . Parts Attached 78 | 6 6 1 3 2 16 19 25 Power 13 | 1 1 . 1 . 3 3 4 Engine 9 | 1 1 . 1 . 3 2 1 Core 4 | . . . . . . 1 3 Reactor . | . . . . . . . . Propulsion 14 | 2 3 . 2 . 2 2 3 Treads . | . . . . . . . . Leg 12 | . 3 . 2 . 2 2 3 Wheel 2 | 2 . . . . . . . Hover . | . . . . . . . . Flight . | . . . . . . . . Utility 11 | 1 1 . . . 2 2 5 Device 4 | . . . . . 2 1 1 Storage 1 | 1 . . . . . . . Processor . | . . . . . . . . Hackware 2 | . . . . . . . 2 Protection 4 | . 1 . . . . 1 2 Artifact . | . . . . . . . . Weapon 40 | 2 1 1 . 2 9 12 13 Energy Gun 11 | . . . . . 1 3 7 Energy Cannon 8 | . . . . . 3 2 3 Ballistic Gun 15 | 2 1 1 . 1 1 7 2 Ballistic Cannon . | . . . . . . . . Launcher 2 | . . . . . 2 . . Special Weapon 4 | . . . . 1 2 . 1 Impact Weapon . | . . . . . . . . Slashing Weapon . | . . . . . . . . Piercing Weapon . | . . . . . . . . Special Melee Weapon . | . . . . . . . . Unidentified Prototypes 4 | . . . 1 1 1 1 . Corrupted Parts 2 | . . . . . . 1 1 System Corruption 4 | . . . . . . 2 2 Parts Lost 23 | . 2 . . . 4 3 14 Power 7 | . . . . . 2 2 3 Propulsion 4 | . 2 . . . . . 2 Utility 5 | . . . . . . 1 4 Weapon 7 | . . . . . 2 . 5 Highest Loss Streak 11 | . 2 . . . 3 3 11 To Critical Strikes . | . . . . . . . . Average Slot Usage (%) 93 | . 88 100 99 100 86 91 75 Engine 13 | . 14 14 13 14 15 17 4 Core 1 | . . . . . . 1 7 Leg 25 | . 17 28 28 28 26 23 20 Device 2 | . . . . . 5 7 5 Storage 11 | . 14 14 14 14 9 7 7 Protection 12 | . 7 14 14 14 9 14 6 Energy Gun 2 | . . . . . 2 5 10 Energy Cannon 1 | . . . . . 9 3 2 Ballistic Gun 18 | . 26 28 28 27 5 9 5 Naked Turns . | . . . . . . . . Heaviest Build 62 | 10 12 14 14 19 50 62 52 Greatest Support 77 | 26 26 20 60 60 77 77 77 Greatest Overweight (x) 9 | . . . . . . . 9 Average Overweight (x) . | . . . . . . . . Largest Inventory Capacity 8 | 8 8 8 8 8 8 8 8 Average Capacity 7 | 6 8 8 8 8 8 8 8 Most Carried 8 | 6 6 8 8 8 8 8 6 Average Carried 6 | 3 4 7 7 7 5 7 3 Final Capacity 8 | 8 8 8 8 8 8 8 8 Final Carried 8 | 6 6 8 8 8 5 6 3 Class Distribution -------------------- 71% | Mutant 16% | Tank 5% | Scavenger-Mutant 4% | Skirmisher Dominant Class ---------------- Mutant | -10/Materials Mutant | -10/Mines Mutant | -10/Exiles Mutant | -9/Mines Skirmisher | -8/Materials Tank | -7/Factory Scavenger-Mutant | -7/Garrison Resources | -11 -10 -10 -10 -9 -8 -7 -7 ----------- Run | Jun Mat Min Exi Min Mat Fac Gar Matter Collected 1502 | 156 105 129 . 92 251 454 315 Remotely . | . . . . . . . . Salvage Created 2572 | . 190 . . 62 365 894 1061 Parts 101 | . 10 . . 3 12 37 39 Haulers Intercepted . | . . . . . . . . Recyclers Shooed . | . . . . . . . . Parts Field Recycled . | . . . . . . . . Retrieved Matter . | . . . . . . . . Parts Self-Destructed . | . . . . . . . . Prevented . | . . . . . . . . Kills | -11 -10 -10 -10 -9 -8 -7 -7 ------- Run | Jun Mat Min Exi Min Mat Fac Gar Combat Hostiles Destroyed 54 | . 4 . . 2 9 18 21 Guns 32 | . 4 . . 2 2 12 12 Cannons 5 | . . . . . 2 . 3 AOE 14 | . . . . . 4 6 4 Classes Destroyed 11 | . 2 . . 2 2 3 2 Worker 2 | . . . . . . 2 . Builder 1 | . . . . . 1 . . Watcher 1 | . 1 . . . . . . Swarmer 9 | . . . . 1 . 4 4 Grunt 24 | . 4 . . . 6 5 9 Brawler 1 | . . . . 1 . . . Duelist 1 | . . . . . . . 1 Sentry 11 | . . . . . 3 3 5 Specialist 2 | . . . . . . . 2 Hunter 4 | . . . . . . 4 . Programmer 2 | . . . . . . 2 . Guerrilla 1 | . . . . . . . 1 Best Kill Streak 8 | . 3 . . 1 3 6 8 Combat Bots Only 8 | . 3 . . 1 3 5 8 Max Kills in Single Turn 4 | . 1 . . 1 2 2 4 Gunslinging . | . . . . . . . . Exploded 4 | . . . . . 1 2 4 Melee . | . . . . . . . . Uniques/NPCs Destroyed . | . . . . . . . . Combat | -11 -10 -10 -10 -9 -8 -7 -7 -------- Run | Jun Mat Min Exi Min Mat Fac Gar Damage Taken 4815 | . 327 . . 79 647 928 2834 Core 899 | . 100 . . 5 75 48 671 Absorbed by Shields . | . . . . . . . . Redirected to Shielding 51 | . 2 . . 1 16 9 23 Regen/Repaired (Parts) 68 | . . . . . . 68 . Core Remaining (%) 81 | 100 . . . 58 86 . . Volleys Fired 172 | . 32 1 . 10 36 40 53 Largest 3 | . 2 2 . 2 3 3 3 Hottest 305 | . 40 43 . 43 250 305 250 Shots Fired 355 | . 64 2 . 17 55 108 109 Gun 297 | . 64 2 . 14 27 101 89 Cannon 47 | . . . . . 21 7 19 Launcher 5 | . . . . . 5 . . Special 6 | . . . . 3 2 . 1 Kinetic 205 | . 64 2 . 14 25 67 33 Thermal 111 | . . . . . 21 19 71 Explosive 5 | . . . . . 5 . . Electromagnetic 28 | . . . . . 2 22 4 Robot Hit Streak 30 | . 5 . . 6 9 14 30 Robot Miss Streak 6 | . 6 . . 1 2 3 2 Penetration Max 1 | . . . . . . 1 1 Secondary Targets 2 | . . . . 1 . 1 . Max Gunslinging Chain 1 | . . . . 1 . 1 . Shots Hit Robots 250 | . 33 . . 11 37 78 91 Core Hits 133 | . 13 . . 5 22 44 49 Critical Kills . | . . . . . . . . Critical Parts Destroyed . | . . . . . . . . Critical Strikes 1 | . . . . . . . 1 Burn 1 | . . . . . . . 1 Melee Attacks . | . . . . . . . . Impact . | . . . . . . . . Slashing . | . . . . . . . . Piercing . | . . . . . . . . Sneak Attacks . | . . . . . . . . Combat Hostiles . | . . . . . . . . Follow-up Attacks . | . . . . . . . . Damage Inflicted 5726 | . 274 27 . 165 1142 1922 2196 Guns 3508 | . 274 . . 130 238 1322 1544 Cannons 869 | . . . . . 349 120 400 Explosions 1269 | . . . . . 551 466 252 Melee . | . . . . . . . . Ramming 80 | . . 27 . 35 4 14 . Kinetic 2041 | . 274 . . 130 218 909 510 Thermal 2911 | . . . . . 500 795 1616 Explosive 400 | . . . . . 400 . . Electromagnetic 294 | . . . . . 20 204 70 Impact . | . . . . . . . . Slashing . | . . . . . . . . Piercing . | . . . . . . . . Highest Corruption 6 | . . . . . . 4 6 Average Corruption 4 | . . . . . . 3 5 Corruption Purged . | . . . . . . . . Corruption Blocked . | . . . . . . . . Effects 28 | . . . . . . 7 21 Message Errors 5 | . . . . . . 2 3 Matter Fused 5 | . . . . . . 2 3 Heat Flow Errors 1 | . . . . . . . 1 Energy Discharges 1 | . . . . . . . 1 Parts Fused 1 | . . . . . . . 1 Data Loss (minor) 7 | . . . . . . 2 5 Data Loss (major) 3 | . . . . . . . 3 Misfires 1 | . . . . . . . 1 Alerts 2 | . . . . . . 1 1 Weapon Failures 2 | . . . . . . . 2 Overload Shots . | . . . . . . . . Overflow Damage 41 | . . . . . 34 6 1 Projectiles 25 | . . . . . 24 . 1 Explosions 16 | . . . . . 10 6 . Melee . | . . . . . . . . Knockbacks 1 | . . . . . . 1 . Impact 1 | . . . . . . 1 . Kinetic . | . . . . . . . . Secondary . | . . . . . . . . Self-Inflicted Damage 104 | . . . . . 37 21 46 Shots 12 | . . . . . 3 5 4 Rammed . | . . . . . . . . Targets Rammed 17 | . . 8 . 7 1 1 . Kicked 17 | . . 8 . 7 1 1 . Crushed . | . . . . . . . . Highest Temperature 815 | . 21 . . 8 584 532 815 Average Temperature 201 | . 8 . . 5 190 108 324 Received Heat Transfer 1704 | . 183 . . 30 324 138 1029 Effects 56 | . . . . . 7 4 45 Shutdowns 16 | . . . . . 4 2 10 Energy Bleed 2 | . . . . . . . 2 Interference 9 | . . . . . . . 9 Matter Decay 8 | . . . . . . . 8 Short Circuit 7 | . . . . . 1 . 6 Damage (minor) 4 | . . . . . 2 . 2 Damage (major) 7 | . . . . . . 2 5 Damage (core) 3 | . . . . . . . 3 Siege Activations . | . . . . . . . . Robots Corrupted . | . . . . . . . . Combat Hostiles . | . . . . . . . . Parts Fried . | . . . . . . . . Impact Corruptions . | . . . . . . . . Robots Melted 3 | . . . . . 1 . 2 Combat Hostiles 3 | . . . . . 1 . 2 Parts Melted 24 | . . . . . 6 9 9 Heat Transferred 8515 | . . . . . 1410 3060 4045 Parts Sabotaged . | . . . . . . . . Parts Stolen . | . . . . . . . . Parts Stripped . | . . . . . . . . Power Chain Reactions 1 | . . . . . . 1 . Missiles Intercepted . | . . . . . . . . Alert | -11 -10 -10 -10 -9 -8 -7 -7 ------- Run | Jun Mat Min Exi Min Mat Fac Gar Peak Influence 657 | . 117 60 . 243 211 365 657 Initial 265 | . . 45 . . . 3 265 Average 142 | . 67 31 . 86 86 101 517 Maximum Alert Level 2 | . . . . 1 1 1 2 Low Security (%) 77 | 100 100 100 . 91 89 83 . Level 1 11 | . . . . 8 10 16 27 Level 2 10 | . . . . . . . 72 Level 3 . | . . . . . . . . Level 4 . | . . . . . . . . Level 5 . | . . . . . . . . High Security . | . . . . . . . . Max Security . | . . . . . . . . Squads Dispatched 11 | . 1 . . . 2 8 . Investigation 2 | . . . . . 1 1 . Extermination 2 | . . . . . . 2 . Reinforcement 6 | . 1 . . . 1 4 . Assault . | . . . . . . . . Garrison 1 | . . . . . . 1 . Intercept . | . . . . . . . . Searches Triggered . | . . . . . . . . Construction Impeded 4 | . . . . . 1 3 . Haulers Reinforced . | . . . . . . . . Active Scanning Responses . | . . . . . . . . Cargo Convoy Interrupts . | . . . . . . . . Stealth | -11 -10 -10 -10 -9 -8 -7 -7 --------- Run | Jun Mat Min Exi Min Mat Fac Gar Distress Signals 3 | . 1 . . . 2 . . Communications Jammed . | . . . . . . . . Distress Signals . | . . . . . . . . Times Spotted 79 | . 8 1 . 10 17 20 23 Peak Tracking Total 9 | . 5 1 . 4 5 4 9 Tactical Retreats 3 | . 1 . . . . 1 1 Traps | -11 -10 -10 -10 -9 -8 -7 -7 ------- Run | Jun Mat Min Exi Min Mat Fac Gar Traps Triggered 2 | . 1 . . . . 1 . Indirectly . | . . . . . . . . Trap Hack Attempts . | . . . . . . . . Triggered . | . . . . . . . . Disarmed . | . . . . . . . . Reprogrammed . | . . . . . . . . Reused . | . . . . . . . . Traps Extracted . | . . . . . . . . Installed . | . . . . . . . . Triggered . | . . . . . . . . Machines | -11 -10 -10 -10 -9 -8 -7 -7 ---------- Run | Jun Mat Min Exi Min Mat Fac Gar Machines Disabled 5 | . . . . . 3 2 . Max in Single Turn 1 | . . . . . 1 1 . Machines Repaired . | . . . . . . . . Machines Sabotaged . | . . . . . . . . Overloaded Fab Kills . | . . . . . . . . Hacking | -11 -10 -10 -10 -9 -8 -7 -7 --------- Run | Jun Mat Min Exi Min Mat Fac Gar Machines Accessed 15 | . . . 4 . 3 7 1 Terminals 5 | . . . . . 3 1 1 Fabricators 1 | . . . . . . 1 . Repair Stations 2 | . . . . . . 2 . Recycling Units 1 | . . . . . . 1 . Scanalyzers 1 | . . . . . . 1 . Garrison Access 1 | . . . . . . 1 . Total Hacks 68 | . . . 34 . 19 11 4 Successful 54 | . . . 34 . 15 4 1 Failed 14 | . . . . . 4 7 3 Catastrophic 6 | . . . . . . 3 3 Database Lockouts . | . . . . . . . . Manual 1 | . . . 1 . . . . Terminals 25 | . . . . . 19 2 4 Fabricators 1 | . . . . . . 1 . Repair Stations 4 | . . . . . . 4 . Recycling Units 1 | . . . . . . 1 . Scanalyzers 1 | . . . . . . 1 . Garrison Access 2 | . . . . . . 2 . Terminal Hacks 50 | . . . 34 . 15 . 1 Record 41 | . . . 34 . 7 . . Prototype ID Bank 1 | . . . . . 1 . . Open Door 1 | . . . . . . . 1 Emergency Access Points 1 | . . . . . 1 . . Unreport Threat 1 | . . . . . 1 . . Dispatch Records 1 | . . . . . 1 . . Reinforcement Status 1 | . . . . . 1 . . Recall Reinforcements 1 | . . . . . 1 . . Zone Layout 2 | . . . . . 2 . . Fabricator Hacks 1 | . . . . . . 1 . Build 1 | . . . . . . 1 . Repair Station Hacks 2 | . . . . . . 2 . Scan Component 1 | . . . . . . 1 . Repair 1 | . . . . . . 1 . Recycling Unit Hacks . | . . . . . . . . Scanalyzer . | . . . . . . . . Garrison Access Hacks 1 | . . . . . . 1 . Unlock Access 1 | . . . . . . 1 . Unauthorized Hacks . | . . . . . . . . Terminals . | . . . . . . . . Fabricators . | . . . . . . . . Repair Stations . | . . . . . . . . Recycling Units . | . . . . . . . . Scanalyzers . | . . . . . . . . Garrison Access . | . . . . . . . . Data Cores Recovered . | . . . . . . . . Used . | . . . . . . . . Hacking Detections 10 | . . . . . 3 6 1 Full Trace Events 1 | . . . . . . . 1 Feedback Events . | . . . . . . . . Feedback Blocked . | . . . . . . . . Robot Schematics Acquired . | . . . . . . . . Robots Built . | . . . . . . . . Authchips . | . . . . . . . . Time . | . . . . . . . . Total Robot Build Rating . | . . . . . . . . Part Schematics Acquired . | . . . . . . . . Parts Built 1 | . . . . . . 1 . Authchips . | . . . . . . . . Time 106 | . . . . . . 106 . Total Part Build Rating 6 | . . . . . . 6 . Parts Repaired 1 | . . . . . . 1 . Time 19 | . . . . . . 19 . Parts Recycled . | . . . . . . . . Recycled Matter . | . . . . . . . . Retrieved Matter . | . . . . . . . . Retrieved Components . | . . . . . . . . Parts Scanalyzed . | . . . . . . . . Part Schematics Acquired . | . . . . . . . . Parts Damaged . | . . . . . . . . Bothacking | -11 -10 -10 -10 -9 -8 -7 -7 ------------ Run | Jun Mat Min Exi Min Mat Fac Gar Used RIF Installer . | . . . . . . . . Robots Hacked . | . . . . . . . . Non-combat . | . . . . . . . . Combat . | . . . . . . . . Robot Hacks Applied . | . . . . . . . . Relay Couplers Released . | . . . . . . . . Fabnet Peak Effective % . | . . . . . . . . Robots Rewired . | . . . . . . . . Allies Hacked . | . . . . . . . . Hacks Repelled . | . . . . . . . . Allies | -11 -10 -10 -10 -9 -8 -7 -7 -------- Run | Jun Mat Min Exi Min Mat Fac Gar Total Allies 7 | . . . . 3 2 . 2 Largest Group 3 | . . . . 3 3 . 1 Highest-Rated Group 90 | . . . . 40 90 . 39 Highest-Rated Ally 90 | . . . . 16 90 . 39 Total Orders . | . . . . . . . . Ally Attacks 75 | . . . . 33 33 . 9 Total Damage 1108 | . . . . 321 610 . 177 Kills 13 | . . . . 10 3 . . Allies Corrupted . | . . . . . . . . Allies Melted . | . . . . . . . . Field Lobotomies 5 | . . . . 3 2 . . Intel | -11 -10 -10 -10 -9 -8 -7 -7 ------- Run | Jun Mat Min Exi Min Mat Fac Gar Robot Analysis Total . | . . . . . . . . Derelict Logs Recovered 5 | . . 3 . 2 . . . Drone Launches . | . . . . . . . . Drone Recoveries . | . . . . . . . . Exploration | -11 -10 -10 -10 -9 -8 -7 -7 ------------- Run | Jun Mat Min Exi Min Mat Fac Gar Turns Passed 4803 | 80 245 721 710 937 419 1078 613 Spaces Moved 3522 | 66 135 565 618 835 235 769 299 Core 18 | 7 . . . . . . 11 Treads . | . . . . . . . . Legs 3404 | . 94 565 618 835 235 769 288 Wheels 100 | 59 41 . . . . . . Hover . | . . . . . . . . Flight . | . . . . . . . . Fastest Speed 50 | 50 90 120 90 90 90 103 90 Average Speed 105 | 85 110 120 113 90 101 103 121 Slowest Speed 500 | 90 120 120 120 90 103 103 500 Overloaded Moves . | . . . . . . . . Propulsion Burnouts . | . . . . . . . . Robots Hopped . | . . . . . . . . Cave-ins Triggered . | . . . . . . . . Exploration Rate (%) 50 | 4 34 99 89 101 26 17 37 Regions Visited 7 Branch Regions 3 Pre-discovered Areas 1 | . . . 1 . . . . Known Exits Taken 3 | . . 1 . . 1 1 . Unknown Exits Taken 4 | 1 1 . 1 1 . . . Scrap Searched 3 | . . 1 . 2 . . . Spaces Dug . | . . . . . . . . Terrain Destroyed 69 | . . . . . 66 2 1 Melee . | . . . . . . . . Projectile 8 | . . . . . 7 . 1 AOE 61 | . . . . . 59 2 . Terrain Rammed . | . . . . . . . . Walls Destroyed . | . . . . . . . . Machines Disabled . | . . . . . . . . Actions | -11 -10 -10 -10 -9 -8 -7 -7 --------- Run | Jun Mat Min Exi Min Mat Fac Gar Total 4321 | 89 179 605 629 1000 364 995 460 Wait 434 | 6 . 25 . 145 61 140 57 Move 3516 | 65 134 564 617 834 234 769 299 Hop . | . . . . . . . . Pick Up 64 | 12 6 4 3 1 10 11 17 Fast Attach 3 | . . . 1 . . 2 . Attach 57 | 6 6 . . 1 12 12 20 Detach 10 | . . . . . 2 4 4 Swap 18 | . . 1 2 1 4 5 5 Drop 30 | . 1 2 6 1 4 11 5 Fire 172 | . 32 1 . 10 36 40 53 Melee . | . . . . . . . . Ram . | . . . . . . . . Kick 17 | . . 8 . 7 1 1 . Crush . | . . . . . . . . Escape Stasis . | . . . . . . . . Rewire . | . . . . . . . . Trap . | . . . . . . . . Miscellaneous . | . . . . . . . . Route ------- -11/Junkyard -10/Materials -10/Mines (discovered 3 exits: [*Mat x2] / *Exi) -10/Exiles (discovered 2 exits: [*Min x2]) -9/Mines (discovered 2 exits: *Mat x2) -8/Materials (discovered 3 exits: *Fac x3) -7/Factory -7/Garrison History --------- Turn | Location | Event 35 | -11/Junkyard | Discovered new exit (range 15) 81 | -11/Junkyard | Entered Materials 290 | -10/Materials | Discovered new exit (range 16) 303 | -10/Materials | Build established: Mutant 326 | -10/Materials | Entered Mines 380 | -10/Mines | Learned location of 1 exit from Materials 408 | -10/Mines | Joined a pair of Derelicts in attacking an 0b10 outpost 529 | -10/Mines | Discovered new exit (range 5) 566 | -10/Mines | YI-UF0 nonchalantly dropped a Grenade Launcher on the ground 640 | -10/Mines | Discovered new exit (range 15) 750 | -10/Mines | Identified exit to Exiles 816 | -10/Mines | Learned location of 1 exit from Materials 1041 | -10/Mines | Deemed a non-threat by the Exiles lab entrance 1047 | -10/Mines | Entered Exiles 1077 | -10/Exiles | Met 8R-AWN 1100 | -10/Exiles | Met EX-HEX 1159 | -10/Exiles | Met EX-DEC 1198 | -10/Exiles | Visited The Gauntlet 1359 | -10/Exiles | Learned location of Zion (-6) 1395 | -10/Exiles | Discovered new exit (range 10) 1472 | -10/Exiles | Met EX-BIN 1495 | -10/Exiles | Aligned with FarCom system 1496 | -10/Exiles | Given EX-Vault access code 1539 | -10/Exiles | Opened EX-Vault 1579 | -10/Exiles | Warned to stay clear of 0b10 Research branches 1625 | -10/Exiles | Found Prototype Leg 1626 | -10/Exiles | Identified Potential Leg 1629 | -10/Exiles | Found Potential Leg 1634 | -10/Exiles | Found Prototype Special Weapon 1638 | -10/Exiles | Found Prototype Energy Cannon 1720 | -10/Exiles | Discovered new exit (range 14) 1757 | -10/Exiles | Stole three prototypes: Potential Leg, Field Lobotomy Kit, Firepult 1757 | -10/Exiles | Entered Mines 1773 | -9/Mines | Identified Field Lobotomy Kit 1802 | -9/Mines | Assimilated G-47 Trooper with FLK Orb 1805 | -9/Mines | Assimilated G-34 Mercenary with FLK Orb 1808 | -9/Mines | Assimilated G-47 Trooper with FLK Orb 1939 | -9/Mines | Discovered new exit (range 11) 2416 | -9/Mines | Discovered new exit (range 14) 2694 | -9/Mines | Entered Materials 2694 | -8/Materials | Accompanied by 3 allies 2694 | -8/Materials | Evolved 4 slots: Power x1, Propulsion x1, Utility x1, Weapon x1 2695 | -8/Materials | Identified exit to Factory 2695 | -8/Materials | Identified Firepult 2876 | -8/Materials | Assimilated H-61 Shepherd with FLK Orb 3003 | -8/Materials | Lost 3 parts (1p2w) 3021 | -8/Materials | Assimilated G-47 Trooper with FLK Orb 3113 | -8/Materials | Entered Factory 3113 | -7/Factory | Evolved 2 slots: Power x1, Utility x1 3115 | -7/Factory | FarCom data flow suspended 3296 | -7/Factory | Fabricated Adv. Cooling System (x1) 3432 | -7/Factory | Repaired Deuterium Engine 3839 | -7/Factory | Build established: Tank 4110 | -7/Factory | Garrison activated, responded to threat 4156 | -7/Factory | Lost 3 parts (2p1u) 4191 | -7/Factory | Identified exit to Garrison 4191 | -7/Factory | Entered Garrison 4230 | -7/Garrison | Triggered checkpoint 4246 | -7/Garrison | Rescued a captive Derelict 4246 | -7/Garrison | Rescued a captive Derelict 4352 | -7/Garrison | Triggered checkpoint 4374 | -7/Garrison | Triggered checkpoint 4395 | -7/Garrison | Destroyed 8 combat bots 4402 | -7/Garrison | Triggered checkpoint 4511 | -7/Garrison | Lost 11 parts (2p2n3u4w) 4529 | -7/Garrison | Spotted B-75 Beast 4721 | -7/Garrison | Core integrity fell below 50% 4751 | -7/Garrison | Core integrity fell below 20% 4804 | -7/Garrison | Destroyed by B-75 Beast with Magnetic Acceleration Cannon Last Messages --------------- 04740_ Overheating: Broken Imp. Carbon-fiber Leg damaged (-10). 04740_ Overheating: Broken Gatling Laser damaged (-11). 04740_ Overheating: Broken Imp. Heat Sink damaged (-10). 04740_ Overheating: Broken Imp. Carbon-fiber Leg damaged (-54). 04741_ Dropped Broken Gatling Laser. 04742_ Overheating: Matter decay (-22). 04745_ Overheating: Core damaged (-98). 04748_ Overheating: Matter decay (-27). 04749_ Overheating: Matter decay (-19). 04750_ Power failure, Lgt. Nuclear Core shutdown. 04751_ Overheating: Core damaged (-133). 04752_ Overheating: Matter decay (-18). 04754_ Overheating: Matter decay (-20). 04755_ Overheating: System interference. 04755_ Pulse Rifle temporarily disabled. 04757_ Overheating: Broken Carbon-fiber Leg damaged (-24). 04758_ Overheating: Matter decay (-16). 04778_ System corrupted: Broken Carbon-fiber Leg fused. 04783_ Dropped Broken Imp. Carbon-fiber Leg. 04789_ Discarded Broken Carbon-fiber Leg. Map ----- +----------------------------------------------------+ | ???????????????????????????????#=#T#%#?????? | | ?????????#####?????????????????#!%=%%#?????? | | ?????????# #?????????????????### ###?????? | | ?????????# #???????????????????#!#???????? | | ?????????# #???????????????????#%#???????? | | ?????????# #???????????????????#!########? | | ?????????# #???????????????????# #?"""""#? | | ?????????# #??????????????????## ### ### | | ?????????# #??????????????????# ^ | | ?????????# #??????????????????# | | ?????????# #??????????????????# ### ### | | ?????????# #??????????????????# #?# #?? | | ?????????# #################### #?#####?? | | ?????????# #???????? | | ?????????# #???????? | | ?????????# #???????? | | ?????????####################### #???????? | | ???????????????????????????????# #???????? | | ???????????????????????????????# ######### | | ???????????????????????????????# ##""""""" | | ??????############?????????????# ##"!! !!! | | ??????#""""""""""#?????????????# ## | | ??????#"""!]!]]="###????#####??# ## | | ??????#"" #????# #??# ## | | ??????#"][[#### ###### #### ## | | ??????# ^^ % #== @=#=!%== | | ??????#"! % # % %!!= = | | ??????#"[ #### ### %##+##### ##"! !!! | | ??????#"" BB #?#%!#?%#???# ##""""""" | | ??????#"""/=!!BB"#####%=##?#???# ######### | | ??????#""""""""""#??#! !#?????# #???????? | | ??????############??#! %!#?????# #???##### | | ????????????????????#! =!+?????# +???? %[ | | ????????????????????#! !##????# ###### ## | | ????????????????????#!!!!#?????# %*% | | ????????????????????######?????# [ ! | | ???????????????????????????????# /% | | ???????????????????????????????############= | | ??????????????????????????????????????????? | | ??????????????????????????????????????????? | | ??????????????????????????????????????????? | | ???????????????????????????????????????????? | | ???????????????????????????????????????????? | | ???????????????????????????????????????????? | | ???????????????????????????????????????????? | | ???????????????????????????????????????????? | | ???????????????????????????????????????????? | | ???????????????????????????????????????????? | | ???????????????????????????????????????????? | | ???????????????????????????????????????????? | +----------------------------------------------------+ Best States ------------- Heat Dissipation 65 Energy Generation 34 Energy Capacity 510 Matter Stores 300 Matter Capacity 300 Sight Range 16 Terrain Scan Range 16 Terrain Scan Density 10 Armor Coverage 600 Core Shielding 20 Evasion (%) 57 Authchip Count 2 Item Schematics ----------------- None Robot Schematics ------------------ None Fabricated ------------ Adv. Cooling System | x1 | -7/Factory | Preloaded Alien Tech Used ----------------- None Achievements -------------- Backstab Challenges ------------ None Game ------ Seed kitarik Manual? 1 Play Time 00:50:01 Cumulative 9.9 hours Start 2023.09.28 @ 21:59:57 End 2023.09.28 @ 22:50:53 Sessions 1 Manual Loads 0 Difficulty Rogue Special Mode None Game No. 28 Rogue 28 Adventurer 0 Explorer 0 Win Type - Total 0 Types 0/0/0/0/0/0/0/0/0 Lore% 13 Gallery% 16 Achievement% 15 Wizard Run 0 Options --------- ASCII 0 Keyboard 0 Movement Mouse Keybinds 0 Fullscreen 2 Font 12/Smallcaps Map View 83x54 Tactical HUD 1 Map Filters NONE Filters NONE Steam 1 RUN: 3c6b9e4d-c1bf-4602-95eb-3482387453b7